{"text_format":"1","workbook":"xlsx","n_sheets":3,"sheets":["Dashboard","Bodega de datos","Tablas dinámicas"],"not_rendered":{"charts":3,"images":31,"macros":1,"external_links":0,"defined_names":1,"comments":0,"pivot_tables":14},"unopened":[],"bounds":{"document_bytes":16777216,"sheet_cells":100000,"rows_first":2000,"rows_last":500,"rows_between":2000,"halvings":0,"cell_chars":16384,"cell_head_chars":4096},"cells_cut":0,"cells_raw":0,"read":"whole","date_system":"1900"}

{"sheet":"Dashboard","index":0,"n_rows":49,"n_cols":21,"rows_kept":49,"cut":false,"hidden":false,"merged":[[48,20,49,23]]}
[]
[]
[]
[]
[]
[]
[]
[]
[]
[]
[]
[]
[]
[]
[]
[]
[]
[]
[]
[]
[]
[]
[]
[]
[]
[]
[]
[]
[]
[]
[]
[]
[]
[]
[]
[]
[]
[]
[]
[]
[]
[]
[]
[]
[]
[]
[]
[]
[null,null,null,null,null,null,null,null,null,null,null,null,null,null,null,null,null,null,null,null,"Actualizar base de datos"]

{"sheet":"Bodega de datos","index":1,"n_rows":16,"n_cols":41,"rows_kept":16,"cut":false,"hidden":false,"merged":[[1,1,1,8],[1,11,1,19],[1,21,1,30],[1,31,1,40],[0,1,0,2]]}
[null,"Actualizar tabla "]
[null,"Canal de atención a la ciudadanía",null,null,null,null,null,null,null,null,null,"Entidad destinataria de la pqrsd que se está trasladando",null,null,null,null,null,null,null,null,null,"Tipología de las pqrs pendientes de trámite",null,null,null,null,null,null,null,null,null,"PQRSD pendientes de trámite por dependencia del DADEP"]
["Mes","Presencial","Telefónico","Redes sociales","Chat","Correo electrónico","Ventanilla de radicación","Buzón de sugerencias","Bogotá te escucha","Pqrs recibidas","Pqrs trasladadas","Secretaría de Movilidad","Secretaría de Desarrollo Económico","Secretaría de Gobierno","Secretaría de Ambiente","Secretaría de Habitad","Instituto para la Economía Social - IPES","Instituto Distrital de Recreación y Deporte -IDRD","Instituto Distrital de Participación y Acción Comunal - IDPAC","Otra entidad destinataria","Pqrs pendientes de trámite al final de cada mes","derecho de petición de interés particular","derecho de petición de interés general","reclamo","queja","solicitud de acceso a la información","consulta","felicitación","solicitud de copias","sugerencias","denuncia por actos de corrupción","Despacho","Registro Inmobiliario","Administración Inmobiliaria y Espacio Público","Administrativa, Financiera y Control Disciplinario","Jurídica","Planeación","Sistemas","Atención al ciudadano","Control Interno","total"]
["enero",39,178,11,94,706,134,0,425,425,189,12,0,107,14,1,12,13,0,30,234,123,86,2,6,3,11,0,1,0,2,0,59,160,13,2,0,0,0,0,{"$f":"+Tabla1[[#This Row],[Despacho]]+Tabla1[[#This Row],[Registro Inmobiliario]]+Tabla1[[#This Row],[Administración Inmobiliaria y Espacio Público]]+Tabla1[[#This Row],[Administrativa, Financiera y Control Disciplinario]]+Tabla1[[#This Row],[Jurídica]]+Tabla1[[#This Row],[Planeación]]+Tabla1[[#This Row],[Sistemas]]+Tabla1[[#This Row],[Control Interno]]+Tabla1[[#This Row],[Atención al ciudadano]]","v":234}]
["febrero",90,228,18,112,1094,126,0,515,515,220,16,0,106,21,0,28,12,1,36,363,219,120,0,0,2,19,0,3,0,0,1,50,302,5,5,0,0,0,0,{"$f":"+Tabla1[[#This Row],[Despacho]]+Tabla1[[#This Row],[Registro Inmobiliario]]+Tabla1[[#This Row],[Administración Inmobiliaria y Espacio Público]]+Tabla1[[#This Row],[Administrativa, Financiera y Control Disciplinario]]+Tabla1[[#This Row],[Jurídica]]+Tabla1[[#This Row],[Planeación]]+Tabla1[[#This Row],[Sistemas]]+Tabla1[[#This Row],[Control Interno]]+Tabla1[[#This Row],[Atención al ciudadano]]","v":363}]
["marzo",158,214,13,122,1228,143,0,624,624,399,24,7,201,17,0,34,28,2,86,386,254,111,0,0,0,13,0,7,0,1,1,81,289,8,7,0,0,0,0,{"$f":"+Tabla1[[#This Row],[Despacho]]+Tabla1[[#This Row],[Registro Inmobiliario]]+Tabla1[[#This Row],[Administración Inmobiliaria y Espacio Público]]+Tabla1[[#This Row],[Administrativa, Financiera y Control Disciplinario]]+Tabla1[[#This Row],[Jurídica]]+Tabla1[[#This Row],[Planeación]]+Tabla1[[#This Row],[Sistemas]]+Tabla1[[#This Row],[Control Interno]]+Tabla1[[#This Row],[Atención al ciudadano]]","v":386}]
["abril",97,195,10,80,1287,110,0,522,522,348,18,5,208,4,0,25,17,3,68,363,231,115,4,2,1,6,0,3,1,0,1,85,265,6,6,0,0,0,0,{"$f":"+Tabla1[[#This Row],[Despacho]]+Tabla1[[#This Row],[Registro Inmobiliario]]+Tabla1[[#This Row],[Administración Inmobiliaria y Espacio Público]]+Tabla1[[#This Row],[Administrativa, Financiera y Control Disciplinario]]+Tabla1[[#This Row],[Jurídica]]+Tabla1[[#This Row],[Planeación]]+Tabla1[[#This Row],[Sistemas]]+Tabla1[[#This Row],[Control Interno]]+Tabla1[[#This Row],[Atención al ciudadano]]","v":363}]
["mayo",87,160,15,92,1162,103,0,427,427,224,21,1,92,7,0,14,23,2,64,415,292,103,2,1,0,9,0,5,1,2,1,85,317,9,3,0,0,0,0,{"$f":"+Tabla1[[#This Row],[Despacho]]+Tabla1[[#This Row],[Registro Inmobiliario]]+Tabla1[[#This Row],[Administración Inmobiliaria y Espacio Público]]+Tabla1[[#This Row],[Administrativa, Financiera y Control Disciplinario]]+Tabla1[[#This Row],[Jurídica]]+Tabla1[[#This Row],[Planeación]]+Tabla1[[#This Row],[Sistemas]]+Tabla1[[#This Row],[Control Interno]]+Tabla1[[#This Row],[Atención al ciudadano]]","v":415}]
["junio",118,163,23,117,1292,93,0,437,437,276,35,0,120,7,1,34,24,4,51,437,226,147,6,31,5,10,0,2,2,8,1,63,343,9,2,0,0,0,0,{"$f":"+Tabla1[[#This Row],[Despacho]]+Tabla1[[#This Row],[Registro Inmobiliario]]+Tabla1[[#This Row],[Administración Inmobiliaria y Espacio Público]]+Tabla1[[#This Row],[Administrativa, Financiera y Control Disciplinario]]+Tabla1[[#This Row],[Jurídica]]+Tabla1[[#This Row],[Planeación]]+Tabla1[[#This Row],[Sistemas]]+Tabla1[[#This Row],[Control Interno]]+Tabla1[[#This Row],[Atención al ciudadano]]","v":418}]
["julio",153,263,18,98,1434,98,0,500,500,332,34,5,149,17,0,35,24,3,65,472,264,179,1,9,2,15,1,1,0,0,1,74,371,4,3,0,0,19,0,{"$f":"+Tabla1[[#This Row],[Despacho]]+Tabla1[[#This Row],[Registro Inmobiliario]]+Tabla1[[#This Row],[Administración Inmobiliaria y Espacio Público]]+Tabla1[[#This Row],[Administrativa, Financiera y Control Disciplinario]]+Tabla1[[#This Row],[Jurídica]]+Tabla1[[#This Row],[Planeación]]+Tabla1[[#This Row],[Sistemas]]+Tabla1[[#This Row],[Control Interno]]+Tabla1[[#This Row],[Atención al ciudadano]]","v":472}]
["agosto",93,305,9,57,1470,139,0,537,537,326,36,2,147,19,0,28,31,2,61,550,313,193,2,10,0,22,1,5,0,4,0,98,435,12,3,0,0,2,0,{"$f":"+Tabla1[[#This Row],[Despacho]]+Tabla1[[#This Row],[Registro Inmobiliario]]+Tabla1[[#This Row],[Administración Inmobiliaria y Espacio Público]]+Tabla1[[#This Row],[Administrativa, Financiera y Control Disciplinario]]+Tabla1[[#This Row],[Jurídica]]+Tabla1[[#This Row],[Planeación]]+Tabla1[[#This Row],[Sistemas]]+Tabla1[[#This Row],[Control Interno]]+Tabla1[[#This Row],[Atención al ciudadano]]","v":550}]
["septiembre",170,358,20,78,1671,102,0,561,561,348,19,1,186,16,1,31,28,3,63,385,245,98,3,14,0,0,0,4,0,0,1,80,295,4,4,0,0,1,0,{"$f":"+Tabla1[[#This Row],[Despacho]]+Tabla1[[#This Row],[Registro Inmobiliario]]+Tabla1[[#This Row],[Administración Inmobiliaria y Espacio Público]]+Tabla1[[#This Row],[Administrativa, Financiera y Control Disciplinario]]+Tabla1[[#This Row],[Jurídica]]+Tabla1[[#This Row],[Planeación]]+Tabla1[[#This Row],[Sistemas]]+Tabla1[[#This Row],[Control Interno]]+Tabla1[[#This Row],[Atención al ciudadano]]","v":385}]
["octubre",null,null,null,null,null,null,null,null,null,null,null,null,null,null,null,null,null,null,null,null,null,null,null,null,null,null,null,null,null,null,null,null,null,null,null,null,null,null,null,{"$f":"+Tabla1[[#This Row],[Despacho]]+Tabla1[[#This Row],[Registro Inmobiliario]]+Tabla1[[#This Row],[Administración Inmobiliaria y Espacio Público]]+Tabla1[[#This Row],[Administrativa, Financiera y Control Disciplinario]]+Tabla1[[#This Row],[Jurídica]]+Tabla1[[#This Row],[Planeación]]+Tabla1[[#This Row],[Sistemas]]+Tabla1[[#This Row],[Control Interno]]+Tabla1[[#This Row],[Atención al ciudadano]]","v":0}]
["noviembre",null,null,null,null,null,null,null,null,null,null,null,null,null,null,null,null,null,null,null,null,null,null,null,null,null,null,null,null,null,null,null,null,null,null,null,null,null,null,null,{"$f":"+Tabla1[[#This Row],[Despacho]]+Tabla1[[#This Row],[Registro Inmobiliario]]+Tabla1[[#This Row],[Administración Inmobiliaria y Espacio Público]]+Tabla1[[#This Row],[Administrativa, Financiera y Control Disciplinario]]+Tabla1[[#This Row],[Jurídica]]+Tabla1[[#This Row],[Planeación]]+Tabla1[[#This Row],[Sistemas]]+Tabla1[[#This Row],[Control Interno]]+Tabla1[[#This Row],[Atención al ciudadano]]","v":0}]
["diciembre",null,null,null,null,null,null,null,null,null,null,null,null,null,null,null,null,null,null,null,null,null,null,null,null,null,null,null,null,null,null,null,null,null,null,null,null,null,null,null,{"$f":"+Tabla1[[#This Row],[Despacho]]+Tabla1[[#This Row],[Registro Inmobiliario]]+Tabla1[[#This Row],[Administración Inmobiliaria y Espacio Público]]+Tabla1[[#This Row],[Administrativa, Financiera y Control Disciplinario]]+Tabla1[[#This Row],[Jurídica]]+Tabla1[[#This Row],[Planeación]]+Tabla1[[#This Row],[Sistemas]]+Tabla1[[#This Row],[Control Interno]]+Tabla1[[#This Row],[Atención al ciudadano]]","v":0}]
["Acumulado año",{"$f":"+B4+B5+B6+B7+B8+B9+B10+B11+B12+B13+B14+B15","v":1005},{"$f":"+C4+C5+C6+C7+C8+C9+C10+C11+C12+C13+C14+C15","v":2064},137,850,11344,1048,0,{"$f":"+I4+I5+I6+I7+I8+I9+I10+I11+I12+I13+I14+I15","v":4548},{"$f":"+J15+J14+J13+J12+J11+J10+J9+J7+J8+J6+J5+J4","v":4548},{"$f":"+K15+K14+K13+K12+K11+K10+K9+K8+K7+K6+K5+K4","v":2662},215,21,1316,122,3,241,200,20,524,3605,2167,1152,20,73,13,105,2,31,4,17,7,675,2777,70,35,0,0,22,0,{"$f":"+Tabla1[[#This Row],[Despacho]]+Tabla1[[#This Row],[Registro Inmobiliario]]+Tabla1[[#This Row],[Administración Inmobiliaria y Espacio Público]]+Tabla1[[#This Row],[Administrativa, Financiera y Control Disciplinario]]+Tabla1[[#This Row],[Jurídica]]+Tabla1[[#This Row],[Planeación]]+Tabla1[[#This Row],[Sistemas]]+Tabla1[[#This Row],[Control Interno]]+Tabla1[[#This Row],[Atención al ciudadano]]","v":3586}]

{"sheet":"Tablas dinámicas","index":2,"n_rows":109,"n_cols":11,"rows_kept":109,"cut":false,"hidden":false,"merged":[[0,6,2,9],[0,1,1,4],[2,1,2,4]]}
[null,"Regresar "]
[]
[null,"al Dashboard"]
["Cantidad de atenciones brindadas a la ciudadanía por canal"]
[]
["Etiquetas de fila","Suma de Presencial",null,"Etiquetas de fila","Suma de Telefónico",null,"Etiquetas de fila","Suma de Redes sociales",null,"Etiquetas de fila","Suma de Chat"]
["septiembre",170,null,"septiembre",358,null,"septiembre",20,null,"septiembre",78]
["Total general",170,null,"Total general",358,null,"Total general",20,null,"Total general",78]
[]
[]
[]
[]
[]
[]
[]
[]
[]
[]
[]
[]
[null,{"$f":"+GETPIVOTDATA(\"Presencial\",$A$6)","v":170}]
[]
["Etiquetas de fila","Suma de Correo electrónico",null,"Etiquetas de fila","Suma de Ventanilla de radicación",null,"Etiquetas de fila","Suma de Buzón de sugerencias",null,"Etiquetas de fila","Suma de Bogotá te escucha"]
["septiembre",1671,null,"septiembre",102,null,"septiembre",0,null,"septiembre",561]
["Total general",1671,null,"Total general",102,null,"Total general",0,null,"Total general",561]
[]
[]
[]
[]
[]
[]
[]
[]
[]
[]
[]
[]
[]
[]
["Cantidad de PQRS recibidas y trasladadas"]
[]
["Etiquetas de fila","Suma de Pqrs recibidas",null,"Etiquetas de fila","Suma de Pqrs trasladadas",null,null,"Etiquetas de columna"]
["septiembre",561,null,"septiembre",348,null,"Valores","septiembre","Total general"]
["Total general",561,null,"Total general",348,null,"Secretaría de Movilidad.",19,19]
[null,null,null,null,null,null,"Secretaría de Desarrollo Económico.",1,1]
[null,null,null,null,null,null,"Secretaría de Gobierno.",186,186]
[null,null,null,null,null,null,"Secretaría de Ambiente.",16,16]
[null,null,null,null,null,null,"Secretaría de Habitad.",1,1]
[null,null,null,null,null,null,"Recreación y Deporte -IDRD.",28,28]
[null,null,null,null,null,null,"Participación y Acción Comunal - IDPAC.",3,3]
[null,null,null,null,null,null,"Instituto para la Economía Social - IPES.",31,31]
[null,null,null,null,null,null,"Otra entidad destinataria.",63,63]
[]
[]
[]
[]
[]
[]
["Cantidad de PQRSD por tipología pendientes de trámite"]
[]
[null,"Etiquetas de columna"]
["Valores","septiembre","Total general"]
["Derecho de petición de interés particular.",245,245]
["Derecho de petición de interés general.",98,98]
["Reclamo.",3,3]
["Queja.",14,14]
["Solicitud de acceso a la información.",0,0]
["Consulta.",0,0]
["Felicitación.",0,0]
["Solicitud de copias.",4,4]
["Sugerencias.",0,0]
["Denuncia por actos de corrupción.",0,0]
[]
[]
["PQRSD pendientes de trámite al final del mes"]
[]
["Etiquetas de fila","Pqrs pendientes de trámite al final de cada mes."]
["septiembre",385]
["Total general",385]
[]
[]
[]
[]
[]
[]
[]
[]
[]
[]
[]
[]
[]
[]
[]
[]
[]
[]
[null,"Etiquetas de columna"]
["Valores","septiembre","Total general"]
["Despacho.",1,1]
["Registro Inmobiliario.",80,80]
["Administración Inmobiliaria y Espacio Público.",295,295]
["Administrativa, Financiera y Control Disciplinario.",4,4]
["Jurídica.",4,4]
["Planeación.",0,0]
["Sistemas.",0,0]
["Control Interno.",0,0]
[" Atención al ciudadano",1,1]
["Suma de total",385,385]